fUSD/lending_fUSD_20250504
["ID","MTS","AMOUNT","RATE_DAILY","PERIOD"]
[359822573,1746359461377,-450.0,0.00019808,2]
[359822575,1746359461387,-450.0,0.00019808,2]
[359822578,1746359461397,-450.0,0.00019808,2]
[359822580,1746359461407,-588.79,0.00019808,2]
[359822582,1746359461417,-459.0,0.00019808,2]
[359822584,1746359461427,-450.0,0.00019808,2]
[359822586,1746359461437,-450.0,0.00019808,2]
[359822588,1746359461449,-450.0,0.00019808,2]
[359822590,1746359461459,-450.0,0.00019808,2]
[359822592,1746359461469,-450.0,0.00019808,2]
[359822594,1746359461479,-1790.88,0.00019808,2]
[359822596,1746359461488,-450.0,0.00019808,2]
[359822598,1746359461497,-450.0,0.00019808,2]
[359822600,1746359461507,-573.15,0.00019808,2]
[359822602,1746359461516,-471.3090587,0.00019808,2]
[359822604,1746359461526,-34498.85,0.00019808,2]
[359822606,1746359461535,-503.78313955,0.00019808,2]
[359822608,1746359461545,-841.66,0.00019808,2]
[359822610,1746359461554,-450.0,0.00019808,2]
[359822611,1746359461563,-316.35,0.00019808,2]
[359822613,1746359461573,-450.0,0.00019808,2]
[359822615,1746359461582,-450.0,0.00019808,2]
[359822617,1746359461591,-463.87297831,0.00019808,2]
[359822619,1746359461601,-450.0,0.00019808,2]
[359822621,1746359461610,-968.24,0.00019808,2]
[359822623,1746359461620,-450.0,0.00019808,2]
[359822625,1746359461629,-1855.43,0.00019808,2]
[359822627,1746359461639,-462.5,0.00019808,2]
[359822629,1746359461648,-450.0,0.00019808,2]
[359822631,1746359461658,-8386.62,0.00019808,2]
[359822633,1746359461667,-450.0,0.00019808,2]
[359822635,1746359461677,-242.67,0.00019808,2]
[359822637,1746359461687,-450.0,0.00019808,2]
[359822639,1746359461697,-700.48,0.00019808,2]
[359822641,1746359461707,-450.0,0.00019808,2]
[359822643,1746359461717,-240.4086445,0.00019808,2]
[359822645,1746359461727,-450.0,0.00019808,2]
[359822648,1746359461737,-450.0,0.00019808,2]
[359822650,1746359461747,-5710.89,0.00019808,2]
[359822652,1746359461757,-450.0,0.00019808,2]
[359822654,1746359461767,-450.0,0.00019808,2]
[359822656,1746359461777,-450.0,0.00019808,2]
[359822658,1746359461787,-577.03978453,0.00019808,2]
[359822660,1746359461797,-450.0,0.00019808,2]
[359822662,1746359461806,-661.6,0.00019808,2]
[359822664,1746359461816,-2167.82,0.00019808,2]
[359822666,1746359461825,-450.0,0.00019808,2]
[359822668,1746359461835,-450.0,0.00019808,2]
[359822670,1746359461844,-494.48,0.00019808,2]
[359822672,1746359461854,-450.0,0.00019808,2]
[359822674,1746359461863,-52939.37,0.00019808,2]
[359822676,1746359461873,-450.0,0.00019808,2]
[359822678,1746359461883,-3333.53473593,0.00019809,2]
[359822680,1746359461893,-12500.0,0.00019812,2]
[359822682,1746359461903,-500.0,0.00019813,2]
[359822684,1746359461912,-2000.0,0.00019813,2]
[359822685,1746359461921,-200.0,0.00019813,2]
[359822688,1746359461932,-2185.45853371,0.00019817,2]
[359822689,1746359461942,-12500.0,0.00019821,2]
[359822691,1746359461951,-12500.0,0.0001983,2]
[359822693,1746359461961,-500.0,0.00019834,2]
[359822695,1746359461971,-831.78,0.00019834,2]
[359822697,1746359461981,-500.0,0.00019834,2]
[359822699,1746359461991,-1806.5,0.00019834,2]
[359822700,1746359462000,-358.66358446,0.00019834,2]
[359822701,1746359462010,-285.71100945,0.00019834,2]
[359822702,1746359462019,-274.41901243,0.00019834,2]
[359822703,1746359462031,-180.07936959,0.00019834,2]
[359822704,1746359462040,-500.0,0.00019834,2]
[359822705,1746359462050,-500.0,0.00019834,2]
[359822706,1746359462059,-500.0,0.00019834,2]
[359822707,1746359462069,-500.0,0.00019834,2]
[359822709,1746359462078,-500.0,0.00019834,2]
[359822710,1746359462088,-500.0,0.00019834,2]
[359822712,1746359462098,-500.0,0.00019834,2]
[359822714,1746359462107,-500.0,0.00019834,2]
[359822716,1746359462117,-500.0,0.00019834,2]
[359822719,1746359462127,-276.96439452,0.00019834,2]
[359822721,1746359462137,-500.0,0.00019834,2]
[359822723,1746359462146,-500.0,0.00019834,2]
[359822725,1746359462156,-500.0,0.00019834,2]
[359822727,1746359462166,-500.0,0.00019834,2]
[359822729,1746359462176,-500.0,0.00019834,2]
[359822731,1746359462186,-500.0,0.00019834,2]
[359822733,1746359462195,-500.0,0.00019834,2]
[359822735,1746359462205,-500.0,0.00019834,2]
[359822737,1746359462215,-500.0,0.00019834,2]
[359822738,1746359462225,-500.0,0.00019834,2]
[359822739,1746359462234,-500.0,0.00019834,2]
[359822740,1746359462243,-300.0,0.00019834,2]
[359822741,1746359462252,-450.0,0.00019835,2]
[359822742,1746359462262,-450.0,0.00019835,2]
[359822743,1746359462271,-450.0,0.00019835,2]
[359822744,1746359462280,-450.0,0.00019835,2]
[359822745,1746359462289,-450.0,0.00019835,2]
[359822746,1746359462298,-275.22519447,0.00019835,2]
[359822747,1746359462308,-450.0,0.00019835,2]
[359822748,1746359462318,-345.4346904,0.00019835,2]
[359822749,1746359462328,-290.26,0.00019835,2]
[359822750,1746359462338,-450.0,0.00019835,2]
[359822751,1746359462347,-450.0,0.00019835,2]
[359822752,1746359462356,-450.0,0.00019835,2]
[359822753,1746359462366,-884.01,0.00019835,2]
[359822754,1746359462378,-450.0,0.00019835,2]
[359822755,1746359462387,-450.0,0.00019835,2]
[359822757,1746359462397,-450.0,0.00019835,2]
[359822759,1746359462407,-581.74,0.00019835,2]
[359822761,1746359462418,-450.0,0.00019835,2]
[359822764,1746359462428,-450.0,0.00019835,2]
[359822765,1746359462438,-450.0,0.00019835,2]
[359822767,1746359462450,-450.0,0.00019835,2]
[359822769,1746359462459,-513.39,0.00019835,2]
[359822772,1746359462469,-598.42,0.00019835,2]
[359822774,1746359462480,-564.14,0.00019835,2]
[359822776,1746359462489,-450.0,0.00019835,2]
[359822778,1746359462499,-450.0,0.00019835,2]
[359822780,1746359462508,-553.48,0.00019835,2]
[359822782,1746359462518,-450.0,0.00019835,2]
[359822784,1746359462528,-450.0,0.00019835,2]
[359822786,1746359462537,-450.0,0.00019835,2]
[359822788,1746359462547,-450.0,0.00019835,2]
[359822790,1746359462556,-450.0,0.00019835,2]
[359822792,1746359462566,-450.0,0.00019835,2]
[359822794,1746359462575,-450.0,0.00019835,2]
[359822796,1746359462585,-419.56,0.00019835,2]
[359822798,1746359462594,-450.0,0.00019835,2]
[359822800,1746359462604,-450.0,0.00019835,2]
[359822802,1746359462614,-485.4,0.00019835,2]
[359822804,1746359462623,-657.67,0.00019835,2]
[359822806,1746359462633,-543.55,0.00019835,2]
[359822808,1746359462643,-461.49,0.00019835,2]
[359822810,1746359462652,-450.0,0.00019835,2]
[359822812,1746359462662,-587.24,0.00019835,2]
[359822814,1746359462671,-542.57,0.00019835,2]
[359822816,1746359462680,-450.0,0.00019835,2]
[359822818,1746359462690,-450.0,0.00019835,2]
[359822820,1746359462699,-359.99,0.00019835,2]
[359822822,1746359462709,-450.0,0.00019835,2]
[359822824,1746359462719,-450.0,0.00019835,2]
[359822827,1746359462730,-450.0,0.00019835,2]
[359822829,1746359462740,-221.42,0.00019835,2]
[359822831,1746359462749,-450.0,0.00019835,2]
[359822833,1746359462759,-283.35,0.00019835,2]
[359822835,1746359462769,-450.0,0.00019835,2]
[359822837,1746359462778,-450.0,0.00019835,2]
[359822838,1746359462788,-450.0,0.00019835,2]
[359822839,1746359462798,-450.0,0.00019835,2]
[359822841,1746359462807,-450.0,0.00019835,2]
[359822843,1746359462817,-450.0,0.00019835,2]
[359822845,1746359462827,-450.0,0.00019835,2]
[359822847,1746359462838,-450.0,0.00019835,2]
[359822849,1746359462848,-450.0,0.00019835,2]
[359822851,1746359462857,-450.0,0.00019835,2]
[359822853,1746359462867,-450.0,0.00019835,2]
[359822855,1746359462877,-450.0,0.00019835,2]
[359822857,1746359462886,-450.0,0.00019835,2]
[359822859,1746359462896,-1239.1,0.00019835,2]
[359822861,1746359462906,-450.0,0.00019835,2]
[359822863,1746359462915,-624.17,0.00019835,2]
[359822865,1746359462925,-795.62,0.00019835,2]
[359822867,1746359462936,-1221.77,0.00019835,2]
[359822869,1746359462946,-542.49,0.00019835,2]
[359822871,1746359462956,-194.01,0.00019835,2]
[359822873,1746359462965,-450.0,0.00019835,2]
[359822875,1746359462975,-450.0,0.00019835,2]
[359822877,1746359462985,-450.0,0.00019835,2]
[359822879,1746359462994,-450.0,0.00019835,2]
[359822881,1746359463004,-256.16,0.00019835,2]
[359822883,1746359463014,-3138.38,0.00019835,2]
[359822885,1746359463023,-450.0,0.00019835,2]
[359822887,1746359463034,-450.0,0.00019835,2]
[359822889,1746359463044,-273.33,0.00019835,2]
[359822891,1746359463055,-450.0,0.00019835,2]
[359822893,1746359463065,-450.0,0.00019835,2]
[359822895,1746359463075,-437.55,0.00019835,2]
[359822897,1746359463085,-450.0,0.00019835,2]
[359822899,1746359463095,-450.0,0.00019835,2]
[359822901,1746359463105,-1070.11,0.00019835,2]
[359822903,1746359463114,-450.0,0.00019835,2]
[359822905,1746359463124,-450.0,0.00019835,2]
[359822907,1746359463135,-450.0,0.00019835,2]
[359822909,1746359463145,-450.0,0.00019835,2]
[359822911,1746359463155,-450.0,0.00019835,2]
[359822913,1746359463165,-450.0,0.00019835,2]
[359822915,1746359463175,-450.0,0.00019835,2]
[359822917,1746359463185,-1073.06,0.00019835,2]
[359822919,1746359463195,-506.23,0.00019835,2]
[359822921,1746359463206,-450.0,0.00019835,2]
[359822923,1746359463216,-450.0,0.00019835,2]
[359822925,1746359463225,-450.0,0.00019835,2]
[359822927,1746359463236,-450.0,0.00019835,2]
[359822929,1746359463246,-857.72,0.00019835,2]
[359822931,1746359463255,-450.0,0.00019835,2]
[359822933,1746359463265,-450.0,0.00019835,2]
[359822935,1746359463277,-2941.44,0.00019835,2]
[359822938,1746359463287,-450.0,0.00019835,2]
[359822940,1746359463297,-450.0,0.00019835,2]
[359822942,1746359463308,-1162.75,0.00019835,2]
[359822944,1746359463318,-450.0,0.00019835,2]
[359822946,1746359463328,-450.0,0.00019835,2]
[359822948,1746359463338,-450.0,0.00019835,2]
[359822950,1746359463348,-562.76,0.00019835,2]
[359822952,1746359463357,-450.0,0.00019835,2]
[359822954,1746359463368,-1159.98,0.00019835,2]
[359822956,1746359463380,-450.0,0.00019835,2]
[359822958,1746359463390,-450.0,0.00019835,2]
[359822976,1746359463564,-450.0,0.00019835,2]
[359822978,1746359463576,-450.0,0.00019835,2]
[359822980,1746359463586,-450.0,0.00019835,2]
[359822982,1746359463596,-450.0,0.00019835,2]
[359822984,1746359463606,-393.25,0.00019835,2]
[359822985,1746359463616,-450.0,0.00019835,2]
[359822987,1746359463626,-450.0,0.00019835,2]
[359822989,1746359463636,-765.13,0.00019835,2]
[359822991,1746359463646,-450.0,0.00019835,2]
[359822993,1746359463657,-450.0,0.00019835,2]
[359822995,1746359463666,-450.0,0.00019835,2]
[359822997,1746359463676,-450.0,0.00019835,2]
[359822999,1746359463685,-533.18,0.00019835,2]
[359823001,1746359463695,-428.06162203,0.00019835,2]
[359823003,1746359463704,-450.0,0.00019835,2]
[359823005,1746359463714,-450.0,0.00019835,2]
[359823007,1746359463723,-502.70725784,0.00019835,2]
[359823009,1746359463733,-372.31,0.00019835,2]
[359823011,1746359463743,-499.17,0.00019835,2]
[359823013,1746359463753,-450.0,0.00019835,2]
[359823015,1746359463763,-450.0,0.00019835,2]
[359823017,1746359463773,-3050.62,0.00019835,2]
[359823019,1746359463783,-243.07,0.00019835,2]
[359823021,1746359463793,-450.0,0.00019835,2]
[359823023,1746359463803,-450.0,0.00019835,2]
[359823025,1746359463813,-450.0,0.00019835,2]
[359823027,1746359463823,-683.7,0.00019835,2]
[359823029,1746359463833,-450.0,0.00019835,2]
[359823031,1746359463844,-450.0,0.00019835,2]
[359823033,1746359463854,-603.46,0.00019835,2]
[359823035,1746359463864,-395.72,0.00019835,2]
[359823037,1746359463873,-450.0,0.00019835,2]
[359823039,1746359463883,-450.0,0.00019835,2]
[359823041,1746359463896,-450.0,0.00019835,2]
[359823042,1746359463906,-2117.72,0.00019835,2]
[359823044,1746359463916,-291.55,0.00019835,2]
[359823045,1746359463926,-450.0,0.00019835,2]
[359823046,1746359463936,-450.0,0.00019835,2]
[359823048,1746359463946,-625.72,0.00019835,2]
[359823049,1746359463955,-494.08,0.00019835,2]
[359823050,1746359463965,-1742.76,0.00019835,2]
[359823051,1746359463975,-3548.84,0.00019835,2]
[359823052,1746359463984,-450.0,0.00019835,2]
[359823053,1746359463994,-186.77213404,0.00019835,2]
[359823054,1746359464003,-450.0,0.00019835,2]
[359823055,1746359464012,-450.0,0.00019835,2]
[359823056,1746359464022,-210.59,0.00019835,2]
[359823057,1746359464032,-357.75,0.00019835,2]
[359823058,1746359464041,-573.03,0.00019835,2]
[359823059,1746359464050,-474.89880793,0.00019835,2]
[359823060,1746359464059,-450.0,0.00019835,2]
[359823062,1746359464069,-588.79,0.00019835,2]
[359823064,1746359464079,-450.0,0.00019835,2]
[359823066,1746359464088,-450.0,0.00019835,2]
[359823068,1746359464098,-450.0,0.00019835,2]
[359823070,1746359464108,-450.0,0.00019835,2]
[359823072,1746359464118,-390.55,0.00019835,2]
[359823074,1746359464128,-1790.88,0.00019835,2]
[359823075,1746359464138,-450.0,0.00019835,2]
[359823076,1746359464147,-596.85912706,0.00019835,2]
[359823077,1746359464156,-573.15,0.00019835,2]
[359823078,1746359464166,-34498.85,0.00019835,2]
[359823080,1746359464175,-841.66,0.00019835,2]
[359823081,1746359464185,-450.0,0.00019835,2]
[359823082,1746359464194,-450.0,0.00019835,2]
[359823083,1746359464204,-499.7,0.00019835,2]
[359823084,1746359464214,-968.24,0.00019835,2]
[359823085,1746359464224,-450.0,0.00019835,2]
[359823086,1746359464233,-1855.43,0.00019835,2]
[359823087,1746359464243,-462.5,0.00019835,2]
[359823088,1746359464252,-450.0,0.00019835,2]
[359823089,1746359464263,-8386.62,0.00019835,2]
[359823090,1746359464273,-205.70456391,0.00019835,2]
[359823091,1746359464283,-450.0,0.00019835,2]
[359823092,1746359464293,-700.48,0.00019835,2]
[359823093,1746359464302,-450.0,0.00019835,2]
[359823094,1746359464313,-450.0,0.00019835,2]
[359823095,1746359464323,-5710.89,0.00019835,2]
[359823096,1746359464332,-485.06234444,0.00019835,2]
[359823097,1746359464343,-450.0,0.00019835,2]
[359823098,1746359464352,-450.0,0.00019835,2]
[359823099,1746359464362,-178.03551519,0.00019835,2]
[359823100,1746359464375,-661.6,0.00019835,2]
[359823102,1746359464384,-2167.82,0.00019835,2]
[359823103,1746359464395,-518.39,0.00019835,2]
[359823104,1746359464404,-450.0,0.00019835,2]
[359823105,1746359464414,-494.48,0.00019835,2]
[359823106,1746359464425,-52939.37,0.00019835,2]
[359823107,1746359464434,-450.0,0.00019835,2]
[359823108,1746359464443,-12500.0,0.00019838,2]
[359823109,1746359464454,-151.0,0.00019839,2]
[359823110,1746359464464,-3333.53473593,0.00019839,2]
[359823111,1746359464474,-955.0,0.00019845,2]
[359823112,1746359464483,-154.36871837,0.00019847,2]
[359823113,1746359464493,-12500.0,0.00019847,2]
[359823114,1746359464503,-12500.0,0.00019856,2]
[359823115,1746359464512,-2185.45853371,0.00019858,2]
[359823116,1746359464522,-556.17257505,0.00019862,2]
[359823117,1746359464531,-831.78,0.00019862,2]
[359823118,1746359464541,-500.0,0.00019862,2]
[359823119,1746359464551,-1806.5,0.00019862,2]
[359823120,1746359464560,-346.32,0.00019863,2]
[359823121,1746359464570,-450.0,0.00019863,2]
[359823122,1746359464579,-450.0,0.00019863,2]
[359823123,1746359464589,-450.0,0.00019863,2]
[359823124,1746359464598,-450.0,0.00019863,2]
[359823125,1746359464608,-450.0,0.00019863,2]
[359823126,1746359464618,-450.0,0.00019863,2]
[359823127,1746359464627,-450.0,0.00019863,2]
[359823128,1746359464637,-450.0,0.00019863,2]
[359823129,1746359464647,-884.01,0.00019863,2]
[359823130,1746359464656,-450.0,0.00019863,2]
[359823131,1746359464666,-450.0,0.00019863,2]
[359823132,1746359464675,-450.0,0.00019863,2]
[359823133,1746359464685,-280.17,0.00019863,2]
[359823134,1746359464696,-450.0,0.00019863,2]
[359823135,1746359464706,-450.0,0.00019863,2]
[359823136,1746359464720,-450.0,0.00019863,2]
[359823137,1746359464731,-564.14,0.00019863,2]
[359823138,1746359464741,-205.47,0.00019863,2]
[359823139,1746359464751,-304.99,0.00019863,2]
[359823140,1746359464761,-406.56,0.00019863,2]
[359823141,1746359464771,-450.0,0.00019863,2]
[359823142,1746359464781,-450.0,0.00019863,2]
[359823143,1746359464791,-450.0,0.00019863,2]
[359823144,1746359464800,-399.63,0.00019863,2]
[359823145,1746359464809,-450.0,0.00019863,2]
[359823146,1746359464819,-450.0,0.00019863,2]
[359823147,1746359464829,-450.0,0.00019863,2]
[359823148,1746359464838,-450.0,0.00019863,2]
[359823149,1746359464848,-485.4,0.00019863,2]
[359823150,1746359464859,-657.67,0.00019863,2]
[359823151,1746359464870,-185.6,0.00019863,2]
[359823152,1746359464880,-587.24,0.00019863,2]
[359823153,1746359464890,-542.57,0.00019863,2]
[359823154,1746359464899,-516.46400175,0.00019863,2]
[359823155,1746359464909,-450.0,0.00019863,2]
[359823156,1746359464918,-450.0,0.00019863,2]
[359823157,1746359464929,-450.0,0.00019863,2]
[359823158,1746359464938,-450.0,0.00019863,2]
[359823159,1746359464948,-543.52,0.00019863,2]
[359823160,1746359464961,-450.0,0.00019863,2]
[359823161,1746359464971,-450.0,0.00019863,2]
[359823162,1746359464980,-313.3,0.00019863,2]
[359823163,1746359464990,-329.11,0.00019863,2]
[359823164,1746359465000,-497.95,0.00019863,2]
[359823165,1746359465011,-450.0,0.00019863,2]
[359823166,1746359465020,-450.0,0.00019863,2]
[359823167,1746359465029,-450.0,0.00019863,2]
[359823168,1746359465039,-450.0,0.00019863,2]
[359823169,1746359465048,-450.0,0.00019863,2]
[359823170,1746359465057,-450.0,0.00019863,2]
[359823171,1746359465067,-450.0,0.00019863,2]
[359823172,1746359465076,-450.0,0.00019863,2]
[359823173,1746359465086,-1239.1,0.00019863,2]
[359823174,1746359465095,-439.47,0.00019863,2]
[359823175,1746359465105,-624.17,0.00019863,2]
[359823176,1746359465114,-795.62,0.00019863,2]
[359823177,1746359465123,-1221.77,0.00019863,2]
[359823178,1746359465132,-490.23,0.00019863,2]
[359823179,1746359465141,-450.0,0.00019863,2]
[359823180,1746359465151,-450.0,0.00019863,2]
[359823181,1746359465160,-450.0,0.00019863,2]
[359823182,1746359465169,-3138.38,0.00019863,2]
[359823183,1746359465179,-450.0,0.00019863,2]
[359823184,1746359465188,-260.37,0.00019863,2]
[359823185,1746359465197,-450.0,0.00019863,2]
[359823186,1746359465207,-318.49,0.00019863,2]
[359823187,1746359465216,-450.0,0.00019863,2]
[359823188,1746359465226,-573.79,0.00019863,2]
[359823189,1746359465236,-1070.11,0.00019863,2]
[359823190,1746359465246,-450.0,0.00019863,2]
[359823191,1746359465255,-450.0,0.00019863,2]
[359823192,1746359465265,-564.01,0.00019863,2]
[359823193,1746359465274,-303.15417946,0.00019863,2]
[359823194,1746359465284,-450.0,0.00019863,2]
[359823195,1746359465294,-450.0,0.00019863,2]
[359823196,1746359465303,-1073.06,0.00019863,2]
[359823197,1746359465312,-450.0,0.00019863,2]
[359823198,1746359465321,-450.0,0.00019863,2]
[359823199,1746359465330,-151.0,0.00019863,2]
[359823200,1746359465339,-450.0,0.00019863,2]
[359823201,1746359465348,-170.065085,0.00019863,2]
[359823202,1746359465357,-450.0,0.00019863,2]
[359823203,1746359465368,-151.0,0.00019863,2]
[359823204,1746359465379,-170.065085,0.00019863,2]
[359823205,1746359465388,-857.72,0.00019863,2]
[359823206,1746359465397,-450.0,0.00019863,2]
[359823207,1746359465406,-450.0,0.00019863,2]
[359823208,1746359465417,-159.027064,0.00019863,2]
[359823209,1746359465426,-2941.44,0.00019863,2]
[359823210,1746359465436,-450.0,0.00019863,2]
[359823211,1746359465446,-289.12003719,0.00019863,2]
[359823212,1746359465456,-159.027064,0.00019863,2]
[359823213,1746359465466,-1162.75,0.00019863,2]
[359823214,1746359465475,-450.0,0.00019863,2]
[359823215,1746359465484,-524.96735025,0.00019863,2]
[359823216,1746359465493,-450.0,0.00019863,2]
[359823217,1746359465503,-562.76,0.00019863,2]
[359823218,1746359465512,-323.69,0.00019863,2]
[359823219,1746359465521,-1159.98,0.00019863,2]
[359823220,1746359465530,-151.0,0.00019863,2]
[359823221,1746359465539,-450.0,0.00019863,2]
[359823222,1746359465548,-450.0,0.00019863,2]
[359823223,1746359465557,-450.0,0.00019863,2]
[359823224,1746359465566,-450.0,0.00019863,2]
[359823225,1746359465576,-450.0,0.00019863,2]
[359823226,1746359465585,-151.0,0.00019863,2]
[359823227,1746359465594,-516.72,0.00019863,2]
[359823228,1746359465603,-450.0,0.00019863,2]
[359823229,1746359465612,-450.0,0.00019863,2]
[359823230,1746359465622,-765.13,0.00019863,2]
[359823231,1746359465632,-450.0,0.00019863,2]
[359823232,1746359465641,-450.0,0.00019863,2]
[359823233,1746359465650,-542.45100923,0.00019863,2]
[359823234,1746359465659,-546.71,0.00019863,2]
[359823235,1746359465668,-533.18,0.00019863,2]
[359823236,1746359465677,-450.0,0.00019863,2]
[359823237,1746359465686,-450.0,0.00019863,2]
[359823238,1746359465696,-450.0,0.00019863,2]
[359823239,1746359465705,-450.0,0.00019863,2]
[359823240,1746359465716,-3050.62,0.00019863,2]
[359823241,1746359465726,-450.0,0.00019863,2]
[359823242,1746359465735,-450.0,0.00019863,2]
[359823243,1746359465745,-450.0,0.00019863,2]
[359823244,1746359465755,-683.7,0.00019863,2]
[359823245,1746359465764,-450.0,0.00019863,2]
[359823246,1746359465774,-450.0,0.00019863,2]
[359823247,1746359465783,-603.46,0.00019863,2]
[359823248,1746359465793,-542.73,0.00019863,2]
[359823249,1746359465802,-450.0,0.00019863,2]
[359823250,1746359465811,-450.0,0.00019863,2]
[359823251,1746359465820,-2117.72,0.00019863,2]
[359823252,1746359465829,-450.0,0.00019863,2]
[359823253,1746359465884,-450.0,0.00019863,2]
[359823254,1746359465894,-625.72,0.00019863,2]
[359823255,1746359465903,-1742.76,0.00019863,2]
[359823256,1746359465912,-3548.84,0.00019863,2]
[359823257,1746359465921,-450.0,0.00019863,2]
[359823258,1746359465930,-450.0,0.00019863,2]
[359823259,1746359465939,-450.0,0.00019863,2]
[359823260,1746359465949,-573.03,0.00019863,2]
[359823261,1746359465958,-567.61,0.00019863,2]
[359823262,1746359465968,-588.79,0.00019863,2]
[359823263,1746359465977,-450.0,0.00019863,2]
[359823264,1746359465987,-450.0,0.00019863,2]
[359823265,1746359465996,-450.0,0.00019863,2]
[359823266,1746359466005,-1790.88,0.00019863,2]
[359823267,1746359466014,-522.96,0.00019863,2]
[359823268,1746359466023,-573.15,0.00019863,2]
[359823269,1746359466032,-151.0,0.00019863,2]
[359823270,1746359466041,-151.0,0.00019863,2]
[359823271,1746359466051,-34498.85,0.00019863,2]
[359823272,1746359466060,-841.66,0.00019863,2]
[359823273,1746359466069,-450.0,0.00019863,2]
[359823274,1746359466078,-450.0,0.00019863,2]
[359823275,1746359466087,-968.24,0.00019863,2]
[359823276,1746359466096,-450.0,0.00019863,2]
[359823277,1746359466105,-1855.43,0.00019863,2]
[359823278,1746359466114,-151.0,0.00019863,2]
[359823279,1746359466123,-462.5,0.00019863,2]
[359823280,1746359466133,-450.0,0.00019863,2]
[359823281,1746359466142,-8386.62,0.00019863,2]
[359823282,1746359466151,-450.0,0.00019863,2]
[359823283,1746359466160,-700.48,0.00019863,2]
[359823284,1746359466169,-434.93,0.00019863,2]
[359823285,1746359466179,-450.0,0.00019863,2]
[359823286,1746359466188,-5710.89,0.00019863,2]
[359823287,1746359466197,-450.0,0.00019863,2]
[359823288,1746359466206,-410.1,0.00019863,2]
[359823289,1746359466214,-661.6,0.00019863,2]
[359823290,1746359466223,-2167.82,0.00019863,2]
[359823291,1746359466232,-450.0,0.00019863,2]
[359823292,1746359466242,-494.48,0.00019863,2]
[359823293,1746359466251,-52939.37,0.00019863,2]
[359823294,1746359466260,-450.33,0.00019863,2]
[359823295,1746359466270,-12500.0,0.00019865,2]
[359823296,1746359466279,-3333.53473593,0.0001987,2]
[359823297,1746359466288,-2053.874,0.0001987,2]
[359823298,1746359466297,-187.105,0.0001987,2]
[359823299,1746359466306,-500.0,0.00019873,2]
[359823300,1746359466315,-500.0,0.00019873,2]
[359823301,1746359466325,-500.98276449,0.00019873,2]
[359823302,1746359466334,-500.0,0.00019873,2]
[359823303,1746359466343,-500.0,0.00019873,2]
[359823304,1746359466352,-500.0,0.00019873,2]
[359823305,1746359466362,-500.0,0.00019873,2]
[359823306,1746359466374,-502.94552156,0.00019873,2]
[359823307,1746359466383,-500.0,0.00019873,2]
[359823308,1746359466391,-302.01142521,0.00019873,2]
[359823309,1746359466400,-500.42110426,0.00019873,2]
[359823310,1746359466410,-500.0,0.00019873,2]
[359823311,1746359466420,-500.60466733,0.00019873,2]
[359823312,1746359466430,-503.01916239,0.00019873,2]